bitfinex-derivatives/quotes_BNBF0:USTF0_20251010
["timestamp","ask_amount","ask_price","bid_price","bid_amount"]
[1760116306302,0.14138094,1232.0,1228.7,0.5998871]
[1760116306303,0.14138094,1232.0,1229.0,0.52398914]
[1760116306503,0.14138094,1232.0,1229.1,0.52398914]
[1760116306702,0.14138094,1232.0,1229.2,0.52398914]
[1760116306901,0.14138094,1232.0,1229.3,0.52398914]
[1760116307203,0.14138094,1232.0,1228.8,0.5998871]
[1760116307405,0.14138094,1232.0,1228.9,1.12399538]
[1760116307605,0.14138094,1232.0,1229.0,1.12399538]
[1760116307903,0.14138094,1232.0,1229.1,0.52410828]
[1760116308102,0.14138094,1232.0,1229.2,0.52410828]
[1760116308305,0.14138094,1232.0,1229.3,0.52410828]
[1760116308506,0.14138094,1232.0,1229.0,0.5998871]
[1760116308507,0.14138094,1232.0,1229.4,0.52410828]
[1760116308803,0.14138094,1232.0,1229.0,0.5998871]
[1760116309002,0.14138094,1232.0,1229.1,0.5241053]
[1760116309203,0.14138094,1232.0,1229.2,0.5241053]
[1760116309402,0.14138094,1232.0,1229.3,0.5241053]
[1760116309706,0.14138094,1232.0,1229.4,0.5241053]
[1760116310007,0.14138094,1232.0,1228.9,0.5998871]
[1760116310307,0.14138094,1232.0,1229.1,0.5998871]
[1760116310506,0.14138094,1232.0,1229.2,0.52413792]
[1760116310806,0.14138094,1232.0,1229.3,0.52413792]
[1760116311007,0.14138094,1232.0,1229.4,0.52413792]
[1760116311207,0.14138094,1232.0,1229.5,0.52413792]
[1760116311408,0.14138094,1232.0,1229.1,0.5998871]
[1760116311608,0.14138094,1232.0,1229.2,0.52419107]
[1760116311907,0.14138094,1232.0,1229.3,0.52419107]
[1760116312107,0.14138094,1232.0,1229.4,0.52419107]
[1760116312308,0.14138094,1232.0,1229.5,0.52419107]
[1760116312509,0.14138094,1232.0,1229.6,1.12407817]
[1760116312703,0.14138094,1232.0,1229.7,0.52419107]
[1760116312906,0.14138094,1232.0,1229.8,0.52419107]
[1760116313104,0.14138094,1232.0,1229.9,0.52419107]
[1760116313309,0.14138094,1232.0,1230.0,0.52419107]
[1760116313509,0.14138094,1232.0,1230.1,0.52419107]
[1760116313811,0.14138094,1232.0,1229.7,0.5998871]
[1760116314110,0.14138094,1232.0,1229.8,1.12384348]
[1760116314311,0.14138094,1232.0,1229.9,0.52395638]
[1760116314507,0.14138094,1232.0,1230.0,0.52395638]
[1760116314806,0.14138094,1232.0,1230.1,0.52395638]
[1760116315011,0.14138094,1232.0,1230.2,0.52395638]
[1760116315208,0.14138094,1232.0,1230.3,0.52340492]
[1760116315406,0.14138094,1232.0,1228.1,4.7868405]
[1760116315407,0.14138094,1232.0,1230.4,0.52340492]
[1760116315707,0.14138094,1232.0,1230.5,0.52340492]
[1760116316011,0.14138094,1232.0,1230.6,0.52340492]
[1760116316311,0.14138094,1232.0,1230.7,0.52340492]
[1760116316506,0.14138094,1232.0,1230.2,0.5998871]
[1760116316708,0.14138094,1232.0,1230.3,0.52296341]
[1760116316904,0.14138094,1232.0,1230.4,0.52296341]
[1760116317109,0.14138094,1232.0,1230.5,0.52296341]
[1760116317307,0.14138094,1232.0,1230.6,0.52296341]
[1760116317507,0.14138094,1232.0,1230.7,0.52296341]
[1760116317708,0.14138094,1232.0,1230.8,0.52296341]
[1760116317907,0.14138094,1232.0,1230.9,0.52296341]
[1760116318110,0.14138094,1232.0,1230.5,0.5998871]
[1760116318311,0.14138094,1232.0,1230.6,0.5223185]
[1760116318510,0.14138094,1232.0,1230.7,0.5223185]
[1760116318805,0.14138094,1232.0,1230.8,0.5223185]
[1760116319010,0.14138094,1232.0,1230.9,0.5223185]
[1760116319306,0.14138094,1232.0,1230.5,0.5998871]
[1760116319511,0.14138094,1232.0,1230.6,0.52208991]
[1760116319806,0.14138094,1232.0,1230.7,0.52208991]
[1760116320111,0.14138094,1232.0,1230.8,0.52208991]
[1760116320313,0.14138094,1232.0,1230.9,0.52208991]
[1760116320507,1.19918665,1234.6,1231.0,0.52208097]
[1760116320709,0.14119738,1232.4,1231.1,0.52208097]
[1760116320910,0.14119738,1232.4,1231.2,0.52208097]
[1760116321105,1.19918665,1234.6,1230.8,0.5998871]
[1760116321308,0.14117762,1232.5,1230.9,0.52198905]
[1760116321604,1.19918665,1234.7,1231.0,0.52198905]
[1760116321810,1.19918665,1234.7,1231.1,0.52198905]
[1760116322106,1.19918665,1234.9,1231.2,0.52198905]
[1760116322310,1.19918665,1234.9,1231.3,0.52198905]
[1760116322507,0.14116416,1233.9,1231.4,0.52198905]
[1760116322707,0.14116416,1233.9,1230.9,0.5998871]
[1760116322708,1.19918665,1235.0,1230.9,0.5998871]
[1760116323008,0.14116072,1233.3,1231.0,0.52114266]
[1760116323311,1.19918665,1234.9,1231.1,0.52114266]
[1760116323511,0.14117962,1232.8,1230.7,0.5998871]
[1760116323708,0.14117962,1232.8,1230.8,0.52083969]
[1760116323909,1.19918665,1234.8,1230.9,0.52083969]
[1760116324213,0.14118649,1232.5,1231.0,0.52083969]
[1760116324413,1.19918665,1234.9,1231.1,0.52083969]
[1760116324709,0.14117504,1232.5,1230.6,0.5998871]
[1760116325012,1.19918665,1234.9,1230.7,1.12040448]
[1760116325208,0.14117361,1232.7,1230.8,0.52051738]
[1760116325408,0.14117361,1232.7,1230.9,0.52051738]
[1760116325610,1.19918665,1235.3,1231.0,0.52051738]
[1760116325810,0.14114755,1232.8,1231.1,0.52051738]
[1760116326009,0.14114755,1232.8,1231.2,0.52051738]
[1760116326210,1.19918665,1235.3,1231.3,0.52051738]
[1760116326410,0.14113725,1232.9,1231.4,0.52051738]
[1760116326713,1.19918665,1235.4,1230.9,0.5998871]
[1760116326912,0.14112752,1232.9,1231.0,0.51960003]
[1760116327109,0.14112752,1232.9,1230.9,0.5998871]
[1760116327110,0.14112752,1232.9,1231.1,0.51960003]
[1760116327411,1.19918665,1235.5,1231.2,0.51960003]
[1760116327608,0.14113611,1232.9,1231.3,0.51960003]
[1760116327809,1.19918665,1235.8,1231.4,0.51960003]
[1760116328013,1.19918665,1235.8,1230.8,0.5998871]
[1760116328209,0.14111207,1233.2,1231.1,0.5998871]
[1760116328413,1.19918665,1235.6,1231.2,0.5190593]
[1760116328609,2.7996856,1238.0,1231.2,0.5190593]
[1760116328610,0.14111607,1233.2,1231.3,0.5190593]
[1760116328915,1.19918665,1235.8,1231.4,0.5190593]
[1760116329214,0.14109719,1233.3,1231.5,0.5190593]
[1760116329514,1.19918665,1235.9,1231.1,0.5998871]
[1760116329716,1.19918665,1235.9,1231.2,0.5176644]
[1760116329914,0.14108232,1233.4,1231.3,0.5176644]
[1760116330216,1.19918665,1236.0,1231.4,0.5176644]
[1760116330413,0.14108861,1233.4,1231.5,0.5176644]
[1760116330618,1.19918665,1236.0,1231.1,0.5998871]
[1760116330818,1.19918665,1236.1,1231.2,0.51699771]
[1760116331019,0.14108003,1233.4,1231.3,0.51699771]
[1760116331214,1.19918665,1236.1,1231.4,0.51699771]
[1760116331519,0.14107946,1233.4,1231.5,0.51699771]
[1760116331712,0.14107946,1233.4,1231.6,0.5163667]
[1760116331918,0.14107946,1233.4,1231.1,0.5998871]
[1760116331919,1.19918665,1236.3,1231.1,0.5998871]
[1760116332217,1.19918665,1236.4,1231.2,0.51636657]
[1760116332418,0.14107889,1235.1,1231.3,0.51636657]
[1760116332616,0.14107889,1235.1,1231.4,0.51636657]
[1760116332816,0.14107889,1235.1,1231.5,0.51636657]
[1760116333016,0.14107889,1235.1,1231.6,0.51636657]
[1760116333219,0.14107889,1235.1,1231.7,0.51636657]
[1760116333420,0.14107889,1235.1,1231.0,0.5998871]
[1760116333721,0.14107889,1235.1,1231.1,1.11499737]
[1760116333921,0.14107889,1235.1,1231.2,0.51511027]
[1760116334220,0.14107889,1235.1,1231.3,0.51511027]
[1760116334419,0.14107889,1235.1,1231.4,0.51511027]
[1760116334618,0.14107889,1235.1,1231.1,0.5998871]
[1760116334819,0.14107889,1235.1,1231.2,0.51474363]
[1760116335018,0.14107889,1235.1,1231.3,0.51474363]
[1760116335218,0.14107889,1235.1,1230.8,0.5998871]
[1760116335516,0.14107889,1235.1,1230.9,1.11437114]
[1760116335721,0.14107889,1235.1,1231.0,0.51448404]
[1760116335922,0.14107889,1235.1,1231.1,0.51448404]
[1760116336218,0.14107889,1235.1,1231.2,0.51448404]
[1760116336422,0.14107889,1235.1,1231.3,0.51448404]
[1760116336618,0.14107889,1235.1,1230.8,0.5998871]
[1760116336921,0.14107889,1235.1,1230.9,0.51422727]
[1760116337121,0.14107889,1235.1,1231.0,0.51422727]
[1760116337318,0.14107889,1235.1,1231.1,0.51422727]
[1760116337519,0.14107889,1235.1,1231.2,0.51422727]
[1760116337719,0.14107889,1235.1,1230.7,0.5998871]
[1760116337917,0.14107889,1235.1,1230.8,0.51406727]
[1760116338120,0.14107889,1235.1,1230.9,0.51406727]
[1760116338319,0.14107889,1235.1,1231.0,0.51406727]
[1760116338519,0.14107889,1235.1,1231.1,0.51390871]
[1760116338718,0.14107889,1235.1,1230.5,0.5998871]
[1760116338719,0.14107889,1235.1,1231.2,0.51390871]
[1760116338920,0.14107889,1235.1,1231.3,0.51390871]
[1760116339225,0.14107889,1235.1,1230.9,0.5998871]
[1760116339520,0.14107889,1235.1,1231.0,0.5138631]
[1760116339826,0.14107889,1235.1,1231.1,0.5138631]
[1760116340024,0.14107889,1235.1,1231.2,0.5138631]
[1760116340225,0.14107889,1235.1,1230.6,0.5998871]
[1760116340425,0.14107889,1235.1,1230.7,0.51414593]
[1760116340624,0.14107889,1235.1,1230.0,0.5998871]
[1760116340829,0.14107889,1235.1,1230.1,0.51433375]
[1760116341125,0.14107889,1235.1,1230.2,0.51433375]
[1760116341322,0.14107889,1235.1,1230.3,0.51433375]
[1760116341521,0.14107889,1235.1,1230.4,0.51433375]
[1760116341720,0.14107889,1235.1,1230.5,0.51433375]
[1760116341921,0.14107889,1235.1,1230.6,0.51448479]
[1760116342121,0.14107889,1235.1,1230.7,0.51448479]
[1760116342324,0.14107889,1235.1,1230.8,0.51448479]
[1760116342523,0.14107889,1235.1,1230.2,0.5875669]
[1760116342823,0.14107889,1235.1,1230.3,0.51477769]
[1760116343123,0.14107889,1235.1,1230.4,0.51477769]
[1760116343328,0.14107889,1235.1,1230.5,0.51477769]
[1760116343624,0.14107889,1235.1,1230.6,0.51510424]
[1760116343826,0.14107889,1235.1,1230.1,0.5875669]
[1760116344229,0.14107889,1235.1,1230.3,0.5875669]
[1760116344829,0.14107889,1235.1,1230.3,1.10266653]
[1760116345030,0.14107889,1235.1,1230.4,1.10266653]
[1760116345228,0.14107889,1235.1,1230.6,0.5875669]
[1760116345527,0.14107889,1235.1,1230.6,1.10266653]
[1760116345827,0.14107889,1235.1,1230.7,0.51509963]
[1760116346031,0.14107889,1235.1,1230.8,0.51509963]
[1760116346232,0.14107889,1235.1,1230.9,0.51509963]
[1760116346428,0.14107889,1235.1,1231.0,0.51509963]
[1760116346633,0.14107889,1235.1,1231.1,0.51509963]
[1760116346830,0.14107889,1235.1,1230.8,0.5875669]
[1760116346831,0.14107889,1235.1,1231.2,0.51509963]
[1760116347033,0.14107889,1235.1,1230.8,0.5875669]
[1760116347833,0.14107889,1235.1,1230.8,1.10422712]
[1760116348031,0.14107889,1235.1,1230.9,0.51666022]
[1760116348331,0.14107889,1235.1,1231.0,0.51666022]
[1760116348628,0.14107889,1235.1,1231.1,0.51666022]
[1760116348833,0.14107889,1235.1,1231.2,0.51666022]
[1760116349029,0.14107889,1235.1,1230.7,0.5875669]
[1760116349230,0.14107889,1235.1,1230.8,1.10445811]
[1760116349428,0.14107889,1235.1,1230.9,0.51689121]
[1760116349934,0.14107889,1235.1,1231.0,0.51689121]
[1760116350133,0.14107889,1235.1,1231.1,1.10445811]
[1760116350334,0.14107889,1235.1,1231.2,1.10445811]
[1760116350530,0.14107889,1235.1,1231.3,0.51689121]
[1760116350734,0.14107889,1235.1,1231.4,0.51689121]
[1760116350935,0.14107889,1235.1,1231.5,0.51689121]
[1760116351137,0.14107889,1235.1,1231.6,0.51689121]
[1760116351432,0.14107889,1235.1,1231.7,0.51689121]
[1760116351633,0.14107889,1235.1,1231.1,0.5875669]
[1760116351832,0.14107889,1235.1,1231.2,0.51773651]
[1760116352030,0.14107889,1235.1,1231.3,0.51773651]
[1760116352231,0.14107889,1235.1,1231.4,0.51773651]
[1760116352436,0.14107889,1235.1,1231.5,0.51773651]
[1760116352636,0.14107889,1235.1,1231.6,0.51773651]
[1760116352836,0.14107889,1235.1,1231.7,0.51773651]
[1760116353032,0.14107889,1235.1,1231.8,0.51773651]
[1760116353233,0.14107889,1235.1,1231.9,0.51773651]
[1760116353534,0.14107889,1235.1,1231.1,0.5875669]
[1760116353833,0.14107889,1235.1,1231.3,0.5875669]
[1760116354036,0.14107889,1235.1,1231.4,0.5182569]
[1760116354236,0.14107889,1235.1,1231.5,0.5182569]
[1760116354434,0.14107889,1235.1,1231.6,0.5182569]
[1760116354632,0.14107889,1235.1,1231.7,0.5182569]
[1760116354837,0.14107889,1235.1,1231.8,0.5182569]
[1760116355138,0.14107889,1235.1,1231.9,0.5182569]
[1760116355336,0.14107889,1235.1,1232.0,0.5182569]
[1760116355539,0.14107889,1235.1,1231.3,0.5875669]
[1760116355731,0.14107889,1235.1,1231.4,0.51866964]
[1760116355935,0.14107889,1235.1,1231.5,0.51866964]
[1760116356134,0.14107889,1235.1,1229.5,1.9945169]
[1760116356135,0.14107889,1235.1,1231.0,0.5875669]
[1760116356338,0.14107889,1235.1,1231.1,0.51890885]
[1760116356537,0.14107889,1235.1,1230.9,0.5875669]
[1760116356538,0.14107889,1235.1,1231.2,0.51890885]
[1760116356834,0.14107889,1235.1,1231.3,0.51890885]
[1760116357038,0.14107889,1235.1,1230.8,0.5875669]
[1760116357238,0.14107889,1235.1,1230.9,0.51917678]
[1760116357436,0.14107889,1235.1,1231.0,0.51917678]
[1760116357639,1.34026554,1235.1,1230.7,0.5875669]
[1760116357834,1.19918665,1235.0,1230.8,0.51934992]
[1760116358034,1.19918665,1235.0,1230.9,0.51934992]
[1760116358238,0.14107889,1235.1,1231.0,0.51934992]
[1760116358440,0.14107889,1235.1,1231.1,0.51934992]
[1760116358638,0.14107889,1235.1,1231.2,0.51934992]
[1760116358837,0.14107889,1235.1,1231.3,0.51934992]
[1760116359139,0.14107889,1235.1,1230.8,0.5875669]
[1760116359443,0.14107889,1235.1,1231.0,0.5875669]
[1760116359642,0.14107889,1235.1,1231.1,0.51977711]
[1760116359937,0.14107889,1235.1,1231.2,0.51977711]
[1760116360136,0.14107889,1235.1,1231.3,0.51977711]
[1760116360342,0.14107889,1235.1,1231.4,0.51977711]
[1760116360537,0.14107889,1235.1,1231.5,0.51977711]
[1760116360739,0.14107889,1235.1,1231.6,0.51977711]
[1760116361041,0.14107889,1235.1,1231.7,0.51977711]
[1760116361239,0.14107889,1235.1,1231.4,0.5875669]
[1760116361240,0.14107889,1235.1,1231.8,0.51977711]
[1760116361539,0.14107889,1235.1,1231.9,0.51977711]
[1760116361739,0.14107889,1235.1,1231.4,0.5875669]
[1760116361943,0.14107889,1235.1,1231.5,0.52027061]
[1760116362142,0.14107889,1235.1,1231.6,0.52027061]
[1760116362443,0.14107889,1235.1,1231.7,0.52027061]
[1760116362640,0.14107889,1235.1,1231.8,0.52027061]
[1760116362943,0.14107889,1235.1,1231.9,0.52027061]
[1760116363142,0.14107889,1235.1,1232.0,0.52027061]
[1760116363442,0.14107889,1235.1,1232.1,0.52027061]
[1760116363743,1.19026554,1236.7,1232.4,0.5875669]
[1760116364038,1.19026554,1236.7,1232.5,0.52027061]
[1760116364238,1.9997754,1237.7,1232.6,0.52027061]
[1760116364442,1.9997754,1237.7,1232.7,0.52027061]
[1760116364742,1.9997754,1237.8,1232.8,0.52027061]
[1760116364939,1.9997754,1237.8,1232.9,0.52027061]
[1760116365143,1.9997754,1237.7,1232.3,0.5875669]
[1760116365345,1.9997754,1237.7,1232.4,0.52117436]
[1760116365541,1.9997754,1237.7,1232.5,0.52117436]
[1760116365841,1.9997754,1238.3,1232.6,0.52117436]
[1760116366045,1.9997754,1238.3,1232.7,0.52117436]
[1760116366246,1.9997754,1238.0,1232.1,0.5875669]
[1760116366542,1.9997754,1238.0,1232.2,0.52154775]
[1760116366742,1.9997754,1238.1,1232.3,0.52154775]
[1760116366945,0.14096945,1236.6,1232.4,0.52154775]
[1760116367145,0.14096945,1236.6,1232.5,0.52154775]
[1760116367446,0.14096945,1236.6,1232.6,0.52154775]
[1760116367648,0.14096945,1236.6,1232.7,0.52154775]
[1760116367846,0.14096945,1236.6,1232.8,0.52154775]
[1760116368143,0.14096945,1236.6,1232.9,0.52154775]
[1760116368342,0.14096945,1236.6,1232.5,0.5875669]
[1760116368546,0.14096945,1236.6,1232.6,0.52228194]
[1760116368852,0.14096945,1236.6,1232.7,0.52228194]
[1760116369152,0.14096945,1236.6,1232.8,0.52228194]
[1760116369448,0.14096945,1236.6,1232.9,0.52228194]
[1760116369650,0.14096945,1236.6,1232.3,0.5875669]
[1760116369848,0.14096945,1236.6,1232.4,0.52285259]
[1760116370049,0.14096945,1236.6,1232.5,0.52285259]
[1760116370248,0.14096945,1236.6,1232.6,0.52285259]
[1760116370453,0.14096945,1236.6,1232.2,0.5875669]
[1760116370650,0.14096945,1236.6,1232.3,0.52349065]
[1760116370849,0.14096945,1236.6,1230.7,1.9945169]
[1760116370850,0.14096945,1236.6,1232.4,0.52349065]
[1760116371053,0.14096945,1236.6,1232.5,0.52349065]
[1760116371355,0.14096945,1236.6,1232.6,0.52349065]
[1760116371550,0.14096945,1236.6,1232.1,0.5875669]
[1760116371755,0.14096945,1236.6,1232.2,0.52416003]
[1760116371950,0.14096945,1236.6,1232.3,0.52416003]
[1760116372150,0.14096945,1236.6,1232.4,0.52416003]
[1760116372354,0.14096945,1236.6,1232.5,0.52416003]
[1760116372654,0.14096945,1236.6,1232.6,0.52416003]
[1760116372856,0.14096945,1236.6,1232.1,0.5875669]
[1760116373057,1.9997754,1236.5,1232.2,0.52476962]
[1760116373251,1.9997754,1236.5,1232.3,0.52476962]
[1760116373550,1.9997754,1235.7,1231.6,0.5875669]
[1760116373754,1.9997754,1235.7,1231.7,0.52531786]
[1760116373955,1.9997754,1235.9,1231.8,0.52531786]
[1760116374257,1.9997754,1235.9,1231.9,0.52531786]
[1760116374550,1.9997754,1235.8,1232.0,0.52531786]
[1760116374850,1.9997754,1235.8,1232.1,0.52531786]
[1760116375053,1.9997754,1235.8,1230.0,1.9945169]
[1760116375054,1.9997754,1235.8,1231.4,0.5875669]
[1760116375252,1.9997754,1235.8,1231.5,0.5291692]
[1760116375455,1.9997754,1235.8,1231.6,0.5291692]
[1760116375652,1.9997754,1235.2,1231.7,0.5291692]
[1760116375955,1.9997754,1235.2,1231.2,0.5875669]
[1760116376155,1.9997754,1234.7,1231.3,0.52936782]
[1760116376450,1.9997754,1234.7,1231.4,0.52936782]
[1760116376655,1.9997754,1234.6,1231.5,0.52936782]
[1760116376852,1.9997754,1234.6,1231.6,0.52971794]
[1760116377056,1.9997754,1235.1,1231.7,0.52971794]
[1760116377257,1.9997754,1235.1,1231.4,0.5875669]
[1760116377458,1.9997754,1234.8,1231.5,0.53009501]
[1760116377654,1.9997754,1234.8,1231.6,0.53009501]
[1760116377858,1.9997754,1234.8,1231.7,0.53009501]
[1760116378154,1.9997754,1234.8,1231.3,0.5875669]
[1760116378358,1.9997754,1234.8,1231.1,0.79780676]
[1760116378359,1.9997754,1234.8,1231.4,1.11793132]
[1760116378555,1.9997754,1234.8,1231.1,0.79780676]
[1760116378556,1.9997754,1234.8,1231.5,0.53036442]
[1760116378754,1.9997754,1234.8,1231.6,0.53036442]
[1760116378955,1.9997754,1234.8,1231.7,0.53036442]
[1760116379257,2.7996856,1235.1,1231.3,0.5875669]
[1760116379258,1.9997754,1235.1,1231.8,0.53036442]
[1760116379456,1.9997754,1235.1,1231.3,0.5875669]
[1760116379658,1.9997754,1235.1,1231.4,0.53064331]
[1760116379858,1.9997754,1235.1,1231.3,0.5875669]
[1760116379859,1.9997754,1235.1,1231.5,0.53064331]
[1760116380056,1.9997754,1235.1,1231.6,0.53064331]
[1760116380259,1.9997754,1235.4,1231.7,0.53064331]
[1760116380460,1.9997754,1235.4,1230.8,0.79780676]
[1760116380756,1.9997754,1235.4,1231.1,0.60227719]
[1760116380956,1.9997754,1235.4,1231.2,0.53068614]
[1760116381256,1.9997754,1235.3,1231.3,0.53068614]
[1760116381458,1.9997754,1235.3,1231.4,0.53068614]
[1760116381658,1.9997754,1235.3,1231.5,0.53068614]
[1760116381856,1.9997754,1234.5,1231.0,0.60227719]
[1760116382060,1.9997754,1234.5,1231.1,1.13313515]
[1760116382260,1.9997754,1234.6,1231.2,0.53085796]
[1760116382561,1.9997754,1234.6,1231.3,0.53085796]
[1760116382759,1.9997754,1234.6,1231.4,0.53085796]
[1760116382954,1.9997754,1234.6,1231.5,0.53085796]
[1760116383159,1.9997754,1234.6,1231.0,0.60227719]
[1760116383356,2.7996856,1235.0,1231.2,0.60227719]
[1760116383556,1.9997754,1235.1,1231.3,0.53098608]
[1760116383758,1.199702,1233.8,1231.4,0.53098608]
[1760116383960,1.199702,1233.8,1231.5,0.53098608]
[1760116384256,1.199702,1233.8,1231.6,0.53098608]
[1760116384455,1.199702,1233.9,1231.2,0.60227719]
[1760116384660,1.199702,1233.9,1231.3,0.53092687]
[1760116384860,1.199702,1233.9,1231.4,0.53092687]
[1760116385058,1.199702,1233.8,1231.5,0.53092687]
[1760116385257,1.199702,1233.8,1231.6,0.53092687]
[1760116385460,1.199702,1233.8,1231.1,0.60227719]
[1760116385658,1.199702,1233.8,1231.2,0.53088548]
[1760116385857,1.199702,1233.8,1231.3,0.53088548]
[1760116386058,1.199702,1233.8,1231.4,0.53088548]
[1760116386261,1.199702,1234.0,1231.5,0.53088548]
[1760116386560,1.199702,1234.3,1231.6,0.53088548]
[1760116386858,1.199702,1234.3,1231.7,0.53088548]
[1760116387058,1.199702,1234.3,1231.8,0.53088548]
[1760116387259,1.199702,1234.3,1231.9,0.53088548]
[1760116387457,1.199702,1234.3,1232.0,0.53088548]
[1760116387662,1.199702,1234.3,1232.1,0.53088548]
[1760116387865,1.199702,1234.2,1231.6,0.60227719]
[1760116388058,1.199702,1234.3,1231.7,0.53075691]
[1760116388259,1.199702,1234.3,1231.8,0.53075691]
[1760116388463,1.199702,1234.1,1231.9,0.53075691]
[1760116388660,1.199702,1234.1,1232.0,0.53075691]
[1760116388864,1.199702,1234.2,1232.1,0.53075691]
[1760116389066,1.199702,1234.5,1232.2,0.53071067]
[1760116389266,1.199702,1234.5,1231.7,0.60227719]
[1760116389467,1.199702,1234.5,1231.8,0.53070457]
[1760116389763,1.199702,1234.5,1231.9,0.53070457]
[1760116389961,1.199702,1234.5,1232.0,0.53070457]
[1760116390162,1.199702,1234.7,1232.1,0.53070457]
[1760116390367,1.199702,1234.6,1232.2,0.53070457]
[1760116390567,1.199702,1234.6,1231.6,0.60227719]
[1760116390768,1.199702,1234.4,1231.7,0.53073276]
[1760116390967,1.199702,1234.4,1231.8,0.53073276]
[1760116391264,1.199702,1234.4,1231.9,0.53073276]
[1760116391468,1.199702,1234.4,1232.0,0.53073276]
[1760116391665,1.199702,1234.4,1231.4,0.60227719]
[1760116391963,1.199702,1234.6,1231.5,1.13300677]
[1760116392172,1.199702,1234.6,1231.6,0.53072958]
[1760116392366,1.199702,1234.5,1231.7,0.53072958]
[1760116392567,1.199702,1234.5,1231.8,0.53072958]
[1760116392768,1.199702,1234.5,1231.9,0.53072958]
[1760116392965,1.199702,1234.5,1232.0,0.53072958]
[1760116393169,1.199702,1234.8,1231.4,0.60227719]
[1760116393367,1.199702,1234.5,1231.5,0.53073899]
[1760116393565,1.199702,1234.5,1231.6,0.53073899]
[1760116393868,1.199702,1234.4,1231.7,0.53073899]
[1760116394070,1.199702,1234.4,1231.8,0.53073899]
[1760116394267,1.199702,1234.3,1231.0,0.60227719]
[1760116394567,1.199702,1234.0,1231.2,0.60227719]
[1760116394766,1.199702,1234.1,1231.3,1.1330254]
[1760116395071,1.199702,1234.0,1231.4,0.53074821]
[1760116395271,1.199702,1233.8,1231.5,0.53074821]
[1760116395470,1.199702,1233.7,1231.1,0.60227719]
[1760116395672,1.199702,1233.6,1231.2,0.53071807]
[1760116395868,1.199702,1235.1,1231.5,0.60227719]
[1760116396073,1.199702,1235.1,1231.6,0.53071807]
[1760116396273,1.199702,1235.0,1231.7,0.53071807]
[1760116396471,1.199702,1235.0,1231.8,0.53071807]
[1760116396773,1.199702,1235.0,1231.9,0.53071807]
[1760116396973,1.199702,1235.0,1232.0,0.53071807]
[1760116397175,1.199702,1235.0,1232.1,0.53071807]
[1760116397370,1.199702,1235.0,1232.2,0.53071807]
[1760116397674,1.199702,1235.0,1231.4,0.60227719]
[1760116397875,1.199702,1235.0,1231.5,0.5305449]
[1760116398070,1.199702,1235.0,1231.6,0.5305449]
[1760116398276,1.199702,1234.5,1231.7,0.5305449]
[1760116398473,1.199702,1234.3,1231.8,0.5305449]
[1760116398772,1.199702,1234.3,1231.9,0.5305449]
[1760116398973,1.199702,1234.3,1232.0,0.5305449]
[1760116399171,1.199702,1234.7,1232.1,0.53057928]
[1760116399376,1.199702,1234.7,1231.3,0.60227719]
[1760116399573,1.199702,1234.7,1231.4,0.53059178]
[1760116399876,1.199702,1234.6,1231.5,0.53059178]
[1760116400076,1.199702,1234.6,1231.6,0.53059178]
[1760116400277,1.199702,1234.6,1231.7,0.53059178]
[1760116400474,1.199702,1234.6,1231.8,0.53059178]
[1760116400676,1.199702,1234.6,1231.9,0.53059178]
[1760116400978,1.199702,1234.1,1231.3,0.60227719]
[1760116401174,1.199702,1234.1,1231.4,0.53063053]
[1760116401476,1.199702,1234.1,1231.5,0.53063053]
[1760116401673,1.199702,1234.1,1231.6,0.53063053]
[1760116401877,1.199702,1234.2,1231.7,0.53063053]
[1760116402074,1.199702,1234.2,1231.8,0.53063053]
[1760116402273,1.199702,1234.2,1231.3,0.60227719]
[1760116402477,1.199702,1234.2,1231.4,0.53078782]
[1760116402678,1.199702,1234.2,1231.5,0.53078782]
[1760116402975,1.199702,1233.9,1231.3,0.60227719]
[1760116403177,1.199702,1233.9,1231.4,0.53089947]
[1760116403378,1.199702,1233.7,1230.9,0.60227719]
[1760116403579,1.199702,1233.7,1230.7,0.79780676]
[1760116403580,1.199702,1234.0,1231.0,0.53091067]
[1760116403777,1.199702,1234.0,1231.1,0.53091067]
[1760116403975,1.199702,1234.0,1231.2,0.53091067]
[1760116404178,1.199702,1233.9,1231.3,0.53091067]
[1760116404376,1.199702,1233.9,1230.7,0.60227719]
[1760116404577,1.199702,1233.3,1230.8,1.1330965]
[1760116404877,1.199702,1233.2,1230.9,0.53081931]
[1760116405076,1.199702,1233.2,1231.0,0.53081931]
[1760116405276,1.199702,1233.2,1230.5,0.60227719]
[1760116405480,1.199702,1233.1,1230.6,0.53042884]
[1760116405680,1.199702,1233.1,1230.7,0.53042884]
[1760116405875,1.199702,1233.1,1230.8,0.53042884]
[1760116406081,1.199702,1233.1,1230.4,0.60227719]
[1760116406377,1.199702,1233.2,1230.5,0.53046321]
[1760116406576,1.199702,1233.4,1230.6,0.53046321]
[1760116406877,1.199702,1233.5,1230.7,0.53046321]
[1760116407081,1.199702,1233.5,1230.3,0.60227719]
[1760116407281,1.199702,1233.5,1230.4,0.52996691]
[1760116407480,1.199702,1233.1,1230.5,0.52996691]
[1760116407781,1.199702,1233.0,1230.2,0.60227719]
[1760116407980,1.199702,1233.0,1230.3,0.52951575]
[1760116408179,1.199702,1233.0,1230.4,0.52951575]
[1760116408378,1.199702,1233.2,1230.5,0.52951575]
[1760116408578,1.199702,1233.2,1230.1,0.60227719]
[1760116408879,1.199702,1233.2,1230.2,0.52899746]
[1760116409077,1.199702,1233.2,1230.3,0.52899746]
[1760116409380,1.199702,1233.3,1230.4,0.52899746]
[1760116409582,1.199702,1233.4,1230.5,0.52848097]
[1760116409776,1.199702,1233.3,1229.8,0.60227719]
[1760116409981,1.199702,1233.3,1229.9,0.52853556]
[1760116410178,1.199702,1234.1,1230.0,0.52853556]
[1760116410378,1.199702,1234.3,1230.1,0.52853556]
[1760116410677,1.199702,1234.3,1230.2,0.52853556]
[1760116410879,1.199702,1234.3,1230.3,0.52853556]
[1760116411080,1.199702,1234.3,1230.4,0.52853556]
[1760116411283,1.199702,1234.4,1230.5,0.52853556]
[1760116411584,1.199702,1233.5,1230.0,0.60227719]
[1760116411883,1.199702,1233.5,1230.1,1.12975013]
[1760116412081,1.199702,1233.5,1230.2,0.52747294]
[1760116412282,1.199702,1233.7,1230.3,0.52747294]
[1760116412480,1.199702,1234.4,1230.4,0.52747294]
[1760116412677,1.199702,1233.9,1229.5,0.60227719]
[1760116412882,1.9997754,1236.5,1227.5,0.14152526]
[1760116413081,0.14096945,1236.6,1227.5,0.14152526]
[1760116434306,1.1826939,1232.1,1227.6,0.52289637]
[1760116434509,1.1826939,1232.0,1227.7,0.52289637]
[1760116434809,1.1826939,1232.0,1227.8,0.52289637]
[1760116435006,1.1826939,1232.0,1227.5,0.14152526]
[1760116435206,1.1826939,1231.8,1227.6,0.52255689]
[1760116435408,1.1826939,1231.9,1227.7,0.52255689]
[1760116435607,1.1826939,1231.9,1227.5,0.14152526]
[1760116435808,1.1826939,1232.0,1227.6,0.52242573]
[1760116436007,1.1826939,1232.0,1227.7,0.52242573]